fUSD/lending_fUSD_20250608
["ID","MTS","AMOUNT","RATE_DAILY","PERIOD"]
[365020540,1749405350140,-333.33110275,0.00017973,2]
[365020541,1749405350161,-500.0,0.00017973,2]
[365020542,1749405350183,-151.0,0.00017979,2]
[365020543,1749405350204,-155.44,0.0001798,2]
[365020544,1749405350226,-480.0,0.00017989,2]
[365020545,1749405350248,-480.0,0.00017989,2]
[365020546,1749405350270,-151.0,0.00017989,2]
[365020547,1749405350292,-480.0,0.00017989,2]
[365020548,1749405350314,-480.0,0.00017989,2]
[365020549,1749405350337,-1232.21,0.00017989,2]
[365020550,1749405350360,-325.03815943,0.00017989,2]
[365020551,1749405350388,-174.96184057,0.00017989,2]
[365020552,1749405350410,-225.71988626,0.00017989,2]
[365020553,1749405350433,-151.0,0.00017989,2]
[365020554,1749405350456,-151.0,0.00017989,2]
[365020555,1749405350478,-151.0,0.00017989,2]
[365020556,1749405350500,-150.0,0.00017989,2]
[365020557,1749405350527,-500.0,0.00017989,2]
[365020558,1749405350549,-150.0,0.00017989,2]
[365020559,1749405350571,-150.0,0.00017989,2]
[365020560,1749405350592,-480.0,0.00017989,2]
[365020561,1749405350616,-151.0,0.00017989,2]
[365020562,1749405350638,-151.0,0.00017989,2]
[365020563,1749405350659,-151.0,0.00017989,2]
[365020564,1749405350683,-480.0,0.00017989,2]
[365020565,1749405350705,-400.0,0.00017989,2]
[365020566,1749405350728,-443.32683758,0.00017989,2]
[365020567,1749405350753,-480.0,0.00017989,2]
[365020568,1749405350776,-480.0,0.00017989,2]
[365020569,1749405350802,-480.0,0.00017989,2]
[365020570,1749405350825,-480.0,0.00017989,2]
[365020571,1749405350848,-500.0,0.00017989,2]
[365020572,1749405350870,-500.0,0.00017989,2]
[365020573,1749405350893,-480.0,0.00017989,2]
[365020574,1749405350915,-500.0,0.00017989,2]
[365020575,1749405350937,-480.0,0.00017989,2]
[365020576,1749405350959,-480.0,0.00017989,2]
[365020577,1749405350982,-151.0,0.00017989,2]
[365020578,1749405351006,-513.58,0.00017989,2]
[365020579,1749405351029,-480.0,0.00017989,2]
[365020580,1749405351052,-480.0,0.00017989,2]
[365020581,1749405351075,-480.0,0.00017989,2]
[365020582,1749405351098,-480.0,0.00017989,2]
[365020583,1749405351120,-538.15326011,0.00017989,2]
[365020584,1749405351143,-480.0,0.00017989,2]
[365020585,1749405351168,-480.0,0.00017989,2]
[365020586,1749405351191,-480.0,0.00017989,2]
[365020587,1749405351215,-480.0,0.00017989,2]
[365020588,1749405351238,-503.99484752,0.00017989,2]
[365020589,1749405351260,-480.0,0.00017989,2]
[365020590,1749405351284,-480.0,0.00017989,2]
[365020591,1749405351306,-525.66116443,0.00017989,2]
[365020592,1749405351329,-480.0,0.00017989,2]
[365020593,1749405351352,-480.0,0.00017989,2]
[365020594,1749405351374,-480.0,0.00017989,2]
[365020595,1749405351397,-480.0,0.00017989,2]
[365020596,1749405351420,-480.0,0.00017989,2]
[365020597,1749405351443,-1319.75,0.00017989,2]
[365020598,1749405351466,-480.0,0.00017989,2]
[365020599,1749405351489,-151.0,0.00017989,2]
[365020600,1749405351514,-1796.86,0.00017989,2]
[365020601,1749405351537,-3776.99216353,0.00017989,2]
[365020602,1749405351565,-17335.04783647,0.00017989,2]
[365020603,1749405351588,-480.0,0.00017989,2]
[365020604,1749405351611,-480.0,0.00017989,2]
[365020605,1749405351633,-480.0,0.00017989,2]
[365020606,1749405351656,-151.0,0.00017989,2]
[365020607,1749405351678,-151.0,0.00017989,2]
[365020608,1749405351704,-480.0,0.00017989,2]
[365020609,1749405351728,-151.0,0.00017989,2]
[365020610,1749405351750,-480.0,0.00017989,2]
[365020611,1749405351774,-151.0,0.00017989,2]
[365020612,1749405351797,-540.20719307,0.00017989,2]
[365020613,1749405351822,-480.0,0.00017989,2]
[365020614,1749405351845,-151.0,0.00017989,2]
[365020615,1749405351868,-151.0,0.00017989,2]
[365020616,1749405351890,-150.0,0.00017989,2]
[365020617,1749405351914,-480.0,0.00017989,2]
[365020618,1749405351937,-480.0,0.00017989,2]
[365020619,1749405351960,-299.980804,0.00017989,2]
[365020620,1749405351986,-980.91,0.00017989,2]
[365020621,1749405352011,-673.61,0.00017989,2]
[365020622,1749405352034,-480.0,0.00017989,2]
[365020623,1749405352056,-299.980804,0.00017989,2]
[365020624,1749405352080,-371.26336246,0.00017989,2]
[365020625,1749405352108,-108.73663754,0.00017989,2]
[365020626,1749405352130,-614.0,0.00017989,2]
[365020627,1749405352153,-151.0,0.00017989,2]
[365020628,1749405352176,-314.23827351,0.00017989,2]
[365020629,1749405352199,-151.0,0.00017989,2]
[365020630,1749405352222,-151.0,0.00017989,2]
[365020631,1749405352245,-480.0,0.00017989,2]
[365020632,1749405352267,-151.0,0.00017989,2]
[365020633,1749405352290,-151.0,0.00017989,2]
[365020634,1749405352313,-151.0,0.00017989,2]
[365020635,1749405352345,-542.06310918,0.00017989,2]
[365020636,1749405352372,-480.0,0.00017989,2]
[365020637,1749405352395,-151.0,0.00017989,2]
[365020638,1749405352420,-553.06,0.00017989,2]
[365020639,1749405352446,-151.0,0.00017989,2]
[365020640,1749405352469,-151.0,0.00017989,2]
[365020641,1749405352492,-168.4752,0.00017989,2]
[365020642,1749405352517,-1240.92,0.00017989,2]
[365020643,1749405352541,-480.0,0.00017989,2]
[365020644,1749405352564,-756.93,0.00017989,2]
[365020645,1749405352587,-1955.18,0.00017989,2]
[365020646,1749405352611,-480.0,0.00017989,2]
[365020647,1749405352635,-480.0,0.00017989,2]
[365020648,1749405352659,-480.0,0.00017989,2]
[365020649,1749405352901,-480.0,0.00017989,2]
[365020650,1749405352925,-480.0,0.00017989,2]
[365020651,1749405352948,-480.0,0.00017989,2]
[365020652,1749405352971,-480.0,0.00017989,2]
[365020653,1749405352995,-1148.67,0.00017989,2]
[365020654,1749405353016,-695.36,0.00017989,2]
[365020655,1749405353039,-1916.47,0.00017989,2]
[365020656,1749405353063,-903.21,0.00017989,2]
[365020657,1749405353085,-480.0,0.00017989,2]
[365020658,1749405353108,-480.0,0.00017989,2]
[365020659,1749405353130,-420.0,0.00017989,2]
[365020660,1749405353152,-480.0,0.00017989,2]
[365020661,1749405353175,-151.0,0.00017989,2]
[365020662,1749405353197,-151.0,0.00017989,2]
[365020663,1749405353219,-480.0,0.00017989,2]
[365020664,1749405353242,-6158.68677977,0.00017989,2]
[365020665,1749405353275,-1895.61322023,0.00017989,2]
[365020666,1749405353296,-480.0,0.00017989,2]
[365020667,1749405353318,-480.0,0.00017989,2]
[365020668,1749405353341,-480.0,0.00017989,2]
[365020669,1749405353363,-471.4111104,0.00017989,2]
[365020670,1749405353388,-480.0,0.00017989,2]
[365020671,1749405353411,-360.0,0.00017989,2]
[365020672,1749405353433,-469.76711073,0.00017989,2]
[365020673,1749405353456,-480.0,0.00017989,2]
[365020674,1749405353479,-480.0,0.00017989,2]
[365020675,1749405353501,-151.0,0.00017989,2]
[365020676,1749405353523,-480.0,0.00017989,2]
[365020677,1749405353545,-19169.20855864,0.0001799,2]
[365020678,1749405353579,-25877.0,0.0001799,2]
[365020679,1749405353605,-25877.0,0.0001799,2]
[365020680,1749405353632,-25877.0,0.0001799,2]
[365020681,1749405353658,-25877.0,0.0001799,2]
[365020682,1749405353684,-25877.0,0.0001799,2]
[365020683,1749405353710,-25877.0,0.0001799,2]
[365020684,1749405353736,-25877.0,0.0001799,2]
[365020685,1749405353765,-25877.0,0.0001799,2]
[365020686,1749405353805,-25877.0,0.0001799,2]
[365020687,1749405353835,-480.0,0.00017989,2]
[365020688,1749405353856,-1297.26133618,0.0001799,2]
[365020689,1749405353877,-181.80737384,0.0001799,2]
[365020690,1749405353899,-151.0,0.0001799,2]
[365020691,1749405353920,-151.0,0.0001799,2]
[365020692,1749405353945,-151.0,0.0001799,2]
[365020693,1749405353967,-151.0,0.0001799,2]
[365020694,1749405353988,-151.0,0.0001799,2]
[365020695,1749405354009,-151.0,0.0001799,2]
[365020696,1749405354031,-151.0,0.0001799,2]
[365020697,1749405354053,-151.0,0.0001799,2]
[365020698,1749405354076,-151.0,0.0001799,2]
[365020699,1749405354097,-450.015307,0.0001799,2]
[365020700,1749405354118,-450.015307,0.0001799,2]
[365020701,1749405354139,-450.015307,0.0001799,2]
[365020702,1749405354163,-450.015307,0.0001799,2]
[365020703,1749405354184,-152.167036,0.0001799,2]
[365020704,1749405354206,-151.0,0.0001799,2]
[365020705,1749405354229,-156.814188,0.0001799,2]
[365020706,1749405354251,-151.0,0.0001799,2]
[365020707,1749405354273,-151.0,0.0001799,2]
[365020708,1749405354294,-237.006949,0.0001799,2]
[365020709,1749405354318,-151.0,0.0001799,2]
[365020710,1749405354341,-207.30968,0.0001799,2]
[365020711,1749405354364,-207.30968,0.0001799,2]
[365020712,1749405354385,-207.30968,0.0001799,2]
[365020713,1749405354408,-207.30968,0.0001799,2]
[365020714,1749405354432,-155.892889,0.0001799,2]
[365020715,1749405354454,-151.0,0.0001799,2]
[365020716,1749405354478,-273.330658,0.0001799,2]
[365020717,1749405354501,-151.0,0.0001799,2]
[365020718,1749405354524,-290.261984,0.0001799,2]
[365020719,1749405354548,-182.823218,0.0001799,2]
[365020720,1749405354571,-299.980804,0.0001799,2]
[365020721,1749405354593,-299.980804,0.0001799,2]
[365020722,1749405354618,-218.158721,0.0001799,2]
[365020723,1749405354641,-218.158721,0.0001799,2]
[365020724,1749405354665,-299.980804,0.0001799,2]
[365020725,1749405354689,-299.980804,0.0001799,2]
[365020726,1749405354715,-218.158721,0.0001799,2]
[365020727,1749405354739,-218.158721,0.0001799,2]
[365020728,1749405354768,-151.0,0.0001799,2]
[365020729,1749405354792,-276.939332,0.0001799,2]
[365020730,1749405354814,-151.0,0.0001799,2]
[365020731,1749405354837,-151.0,0.0001799,2]
[365020732,1749405354859,-151.0,0.0001799,2]
[365020733,1749405354882,-151.0,0.0001799,2]
[365020734,1749405354905,-151.0,0.0001799,2]
[365020735,1749405354929,-153.155426,0.0001799,2]
[365020736,1749405354951,-151.0,0.0001799,2]
[365020737,1749405354975,-500.0,0.00017998,2]
[365020738,1749405354998,-11458.06600183,0.00017999,2]
[365020739,1749405355020,-200.0,0.00018,2]
[365020740,1749405355059,480.0,0.00017989,2]
[365020741,1749405355093,151.0,0.0001799,2]
[365020742,1749405356753,480.0,0.00017989,2]
[365020743,1749405357248,360.0,0.00017989,2]
[365020744,1749405358422,386.61556015,0.00017989,2]
[365020745,1749405390977,477.06,0.00015307,2]
[365020746,1749405431254,205.0,0.00016909,2]
[365020749,1749405614993,222.9,0.00013699,2]
[365020750,1749405637945,5033.74608861,0.00017016,2]
[365020751,1749405637967,10000.0,0.00017016,2]
[365020752,1749405637989,8866.25391139,0.00017016,2]
[365020753,1749405689393,1133.74608861,0.00016933,2]
[365020754,1749405689416,10000.0,0.00016933,2]
[365020755,1749405689437,1635.26391139,0.00016933,2]
[365020756,1749405694852,160.15,0.00016933,2]
[365020757,1749405727973,168.07,0.00016931,2]
[365020758,1749405734043,260.35,0.00016931,2]
[365020759,1749405744179,200.0,0.00016931,2]
[365020760,1749405760145,443.74,0.00016922,2]
[365020761,1749405822331,1000.0,0.00016904,2]
[365020762,1749405851779,201.0,0.00016782,2]
[365020763,1749405915283,250.0,0.00016901,2]
[365020764,1749406084343,1114.58,0.00016887,2]
[365020781,1749406213410,176.96,0.00013516,2]
[365020782,1749406231394,-150.0,0.00017178,7]
[365020783,1749406231404,-250.0,0.00017208,2]
[365020784,1749406231413,-162.371147,0.00017239,2]
[365020785,1749406231426,-34.96958594,0.00017571,2]
[365020786,1749406231447,-442.09041406,0.00017571,2]
[365020787,1749406231457,-164.030791,0.0001764,2]
[365020788,1749406231467,-55.89179262,0.000177,2]
[365020789,1749406231479,-398.81820738,0.000177,2]
[365020790,1749406231490,-201.0,0.00017747,2]
[365020791,1749406231501,-809.82629485,0.00017778,2]
[365020792,1749406231513,-96.82326259,0.00017778,2]
[365020793,1749406231523,-207.4,0.00017778,2]
[365020794,1749406231533,-151.0,0.00017779,2]
[365020795,1749406231543,-153.22322197,0.00017779,2]
[365020796,1749406231552,-300.0,0.00017787,2]
[365020797,1749406231562,-956.62401369,0.00017787,2]
[365020798,1749406231573,-243.37598631,0.00017787,2]
[365020799,1749406231583,-24.218321,0.00017788,2]
[365020800,1749406231595,-730.18917491,0.00017788,2]
[365020801,1749406231606,-1114.58118866,0.00017788,2]
[365020802,1749406231618,-430.71938129,0.00017788,2]
[365020803,1749406231630,-1316.02193414,0.00017788,2]
[365020804,1749406231639,-150.99,0.00017788,2]
[365020805,1749406231649,-1821.42738258,0.00017788,2]
[365020806,1749406231661,-496.496,0.00017788,2]
[365020807,1749406231679,-1280.86813107,0.00017788,2]
[365020808,1749406231695,-1150.80707467,0.00017788,2]
[365020809,1749406231706,-271.414428,0.00017788,2]
[365020810,1749406231718,-295.80682,0.00017788,2]
[365020812,1749406231731,-1903.78016368,0.00017788,2]
[365020813,1749406231741,-550.0,0.00017788,2]
[365020814,1749406231752,-500.0,0.00017789,2]
[365020815,1749406231762,-115.87091652,0.00017789,2]
[365020816,1749406231774,-119.56147889,0.00017789,2]
[365020817,1749406231784,-295.75878205,0.00017789,2]
[365020818,1749406231795,-204.24121795,0.00017789,2]
[365020819,1749406231804,-48.58702609,0.00017789,2]
[365020820,1749406231815,-109.98104445,0.00017789,2]
[365020821,1749406231825,-500.0,0.00017789,2]
[365020822,1749406231834,-500.0,0.00017789,2]
[365020823,1749406231844,-163.64994877,0.00017789,2]
[365020824,1749406231853,-251.17701298,0.00017789,2]
[365020825,1749406231863,-500.0,0.00017789,2]
[365020826,1749406231873,-500.0,0.00017789,2]
[365020827,1749406231882,-500.0,0.00017789,2]
[365020828,1749406231892,-500.0,0.00017789,2]
[365020829,1749406231901,-500.0,0.00017789,2]
[365020830,1749406231911,-500.0,0.00017789,2]
[365020831,1749406231920,-500.0,0.00017789,2]
[365020832,1749406231930,-415.60372437,0.00017789,2]
[365020833,1749406231940,-500.0,0.00017789,2]
[365020834,1749406231949,-500.0,0.00017789,2]
[365020835,1749406231959,-115.60912496,0.00017789,2]
[365020836,1749406231970,-384.39087504,0.00017789,2]
[365020837,1749406231979,-300.32820762,0.00017789,2]
[365020838,1749406231991,-199.67179238,0.00017789,2]
[365020839,1749406232001,-500.0,0.00017789,2]
[365020840,1749406232010,-659.24642658,0.00017789,2]
[365020842,1749406232021,-1147.72357342,0.00017789,2]
[365020846,1749406232032,-155.424,0.00017789,2]
[365020849,1749406232041,-1319.2224,0.0001779,2]
[365020852,1749406232051,-770.43002658,0.0001779,2]
[365020855,1749406232062,-321.29154664,0.0001779,2]
[365021105,1749406237455,-218.900713,0.000175,2]
[365021106,1749406237464,-15459.94692306,0.0001779,2]
[365021107,1749406237560,-13448.33150372,0.0001779,2]
[365021108,1749406237569,-1000.0,0.0001779,2]
[365021109,1749406237579,-3616.14160888,0.0001779,2]
[365021110,1749406237667,-1590.58598715,0.0001779,2]
[365021111,1749406237679,-611.70497818,0.0001779,2]
[365021570,1749406350721,561.33,0.00014989,2]
[365021571,1749406386514,150.0,0.00016905,7]
[365021572,1749406389947,239.25,0.00016905,2]
[365021573,1749406396302,252.11,0.00016905,2]
[365021574,1749406680223,3187.19608861,0.00016887,2]
[365021575,1749406680248,10000.0,0.00016887,2]
[365021576,1749406680273,4594.82391139,0.00016887,2]
[365021577,1749406682364,200.0,0.00016887,2]
[365021578,1749406683414,-360.60731093,0.00017253,2]
[365021579,1749406708845,168.89,0.00016882,2]
[365021581,1749406771129,219.64,0.00013699,2]
[365021582,1749406785009,791.88,0.00016834,2]
[365021587,1749406893236,500.0,0.00016824,2]
[365021588,1749406901372,3724.76608861,0.00016824,2]
[365021589,1749406901396,10000.0,0.00016824,2]
[365021590,1749406901419,10000.0,0.00016824,2]
[365021591,1749406901441,175.23391139,0.00016824,2]
[365021593,1749406931515,201.0,0.00016747,2]
[365021594,1749406960802,185.04,0.00016824,2]
[365021595,1749406961914,379.0,0.00016747,2]
[365021596,1749406963959,-208.60731093,0.0001712,2]
[365021597,1749407163482,200.0,0.00016824,2]
[365021598,1749407164782,-55.39268907,0.0001712,2]
[365021599,1749407172665,1000.0,0.00016827,2]
[365021600,1749407182514,250.0,0.00016827,2]
[365021603,1749407323566,150.0,0.00016816,2]
[365021604,1749407326540,7459.72608861,0.00013368,2]
[365021605,1749407326561,155.98043139,0.00013368,2]
[365021618,1749407350742,176.96,0.00013454,2]
[365021619,1749407361222,3963.60725204,0.00017,2]
[365021626,1749407399985,-250.0,0.00017186,2]
[365021627,1749407400013,-200.72268907,0.00017253,2]
[365021628,1749407400039,-164.61,0.00017345,2]
[365021629,1749407400066,-600.0,0.00017493,4]
[365021630,1749407400092,-1000.0,0.000176,2]
[365021631,1749407400119,-1957.856,0.00017609,2]
[365021632,1749407400146,-207.4,0.00017609,2]
[365021633,1749407400173,-1200.0,0.00017619,2]
[365021634,1749407400200,-300.0,0.00017619,2]
[365021635,1749407400227,-15085.88462074,0.00017619,2]
[365021636,1749407400254,-11186.42483916,0.0001762,2]
[365021637,1749407400281,-164.030792,0.0001764,2]
[365021638,1749407400309,-2030.296672,0.00017664,2]
[365021639,1749407400337,-2572.16,0.000177,2]
[365021640,1749407400365,-2105.41764886,0.00017719,2]
[365021641,1749407400391,-150.0,0.00017737,2]
[365021642,1749407400421,-150.0,0.00017755,2]
[365021643,1749407400449,-150.0,0.00017762,2]
[365021644,1749407400476,-2183.31810187,0.00017774,2]
[365021645,1749407400503,-300.0,0.00017778,2]
[365021646,1749407400529,-151.0,0.00017779,2]
[365021647,1749407400557,-500.0,0.00017779,2]
[365021648,1749407400585,-390.8786363,0.00017779,2]
[365021660,1749407431586,-109.1213637,0.00017779,2]
[365021662,1749407431595,-668.65185757,0.00017779,2]
[365021665,1749407431605,-172.63439169,0.00017779,2]
[365021666,1749407431617,-327.36560831,0.00017779,2]
[365021667,1749407431627,-423.70975169,0.00017779,2]
[365021668,1749407431639,-576.29024831,0.00017779,2]
[365021669,1749407431649,-500.0,0.00017779,2]
[365021670,1749407431659,-151.0,0.00017779,2]
[365021671,1749407431668,-310.47566519,0.00017779,2]
[365021672,1749407431679,-189.52433481,0.00017779,2]
[365021673,1749407431688,-500.0,0.00017779,2]
[365021674,1749407431698,-500.0,0.00017779,2]
[365021675,1749407431707,-500.0,0.00017779,2]
[365021676,1749407431716,-500.0,0.00017779,2]
[365021677,1749407431726,-500.0,0.00017779,2]
[365021678,1749407431735,-425.07454005,0.00017779,2]
[365021679,1749407431750,-74.92545995,0.00017779,2]
[365021680,1749407431759,-500.0,0.00017779,2]
[365021681,1749407431768,-408.74521352,0.00017779,2]
[365021682,1749407431969,-91.25478648,0.00017779,2]
[365021683,1749407431978,-500.0,0.00017779,2]
[365021684,1749407431987,-500.0,0.00017779,2]
[365021685,1749407431996,-152.07473124,0.00017779,2]
[365021686,1749407432006,-151.0,0.00017779,2]
[365021687,1749407432015,-250.0,0.00017783,2]
[365021688,1749407432024,-426.69409128,0.00017788,2]
[365021689,1749407432036,-352.63265463,0.00017788,2]
[365021690,1749407432046,-1720.67325409,0.00017788,2]
[365021691,1749407432056,-1000.0,0.00017788,2]
[365021692,1749407432065,-1000.0,0.00017788,2]
[365021693,1749407432074,-809.68304726,0.00017788,2]
[365021694,1749407432084,-4337.09081263,0.00017788,2]
[365021695,1749407432093,-1000.0,0.00017789,2]
[365021696,1749407432102,-4225.3857,0.00017789,2]
[365021697,1749407432111,-5087.826,0.00017789,2]
[365021698,1749407432120,-1000.0,0.00017795,2]
[365021699,1749407432130,-184.11968837,0.00017799,2]
[365021700,1749407432139,-514.43,0.00017799,2]
[365021702,1749407432148,-150.0,0.000178,2]
[365021704,1749407432158,-194.96,0.000178,2]
[365021706,1749407432167,-150.0,0.000178,2]
[365021708,1749407432176,-354.34,0.000178,2]
[365021710,1749407432185,-150.0,0.000178,2]
[365021712,1749407432194,-38.91155129,0.000178,2]
[365021714,1749407432206,-415.53844871,0.000178,2]
[365021716,1749407432215,-151.42,0.000178,2]
[365021718,1749407432224,-252.42,0.000178,2]
[365021719,1749407432233,-201.0,0.00017807,2]
[365021721,1749407432242,-150.0,0.00017812,2]
[365021723,1749407432251,-150.0,0.00017819,2]
[365021725,1749407432261,-245.2927765,0.00017819,2]
[365021728,1749407432272,-54.7072235,0.00017819,2]
[365021730,1749407432282,-150.0,0.00017827,2]
[365021731,1749407432291,-2264.10087164,0.00017829,2]
[365021733,1749407432300,-500.0,0.00017831,2]
[365021735,1749407432310,-150.0,0.00017832,2]
[365021737,1749407432319,-14274.37604423,0.00017832,2]
[365021739,1749407432328,-223.78579082,0.00017842,2]
[365021741,1749407432338,-809.68304718,0.00017848,2]
[365021743,1749407432347,-2000.0,0.00017851,2]
[365021745,1749407432356,-500.0,0.00017851,2]
[365021747,1749407432365,-200.0,0.00017851,2]
[365021749,1749407432375,-150.0,0.00017855,2]
[365021751,1749407432383,-500.0,0.00017855,2]
[365021753,1749407432392,-150.0,0.00017859,2]
[365021754,1749407432401,-150.0,0.00017866,2]
[365021756,1749407432411,-500.0,0.00017873,2]
[365021758,1749407432419,-517.62175208,0.00017873,2]
[365021760,1749407432429,-500.0,0.00017873,2]
[365021762,1749407432438,-500.0,0.00017873,2]
[365021764,1749407432446,-500.0,0.00017873,2]
[365021766,1749407432456,-500.0,0.00017873,2]
[365021768,1749407432466,-150.0,0.00017874,2]
[365021770,1749407432475,-1053.15,0.00017878,2]
[365021772,1749407432484,-1053.15,0.00017878,2]
[365021774,1749407432493,-1053.15,0.00017878,2]
[365021776,1749407432502,-2851.21,0.00017878,2]
[365021778,1749407432511,-1053.15,0.00017878,2]
[365021780,1749407432520,-1053.15,0.00017878,2]
[365021782,1749407432530,-2347.87260389,0.00017884,2]
[365021783,1749407432540,-229.98624836,0.00017886,2]
[365021805,1749407437569,-164.030792,0.0001764,2]
[365021806,1749407437579,-129.60831735,0.00017831,2]
[365021807,1749407437591,-194.34765203,0.00017831,2]
[365021808,1749407437601,-16.97784617,0.00017886,2]
[365021809,1749407437611,-209.31688881,0.00017887,2]
[365021810,1749407437620,-185.26046735,0.00017887,2]
[365021811,1749407437630,-451.19333531,0.00017887,2]
[365021812,1749407437639,-247.74250089,0.00017887,2]
[365021813,1749407437649,-375.01368749,0.00017887,2]
[365021814,1749407437658,-1264.76,0.00017887,2]
[365021815,1749407437668,-480.0,0.00017887,2]
[365021816,1749407437677,-940.04,0.00017887,2]
[365021817,1749407437686,-480.0,0.00017887,2]
[365021818,1749407437696,-480.0,0.00017887,2]
[365021819,1749407437705,-480.0,0.00017887,2]
[365021820,1749407437715,-1873.71,0.00017887,2]
[365021821,1749407437724,-480.0,0.00017887,2]
[365021822,1749407437734,-480.0,0.00017887,2]
[365021823,1749407437744,-2110.90212486,0.00017887,2]
[365021824,1749407437755,-268493.33059826,0.00017888,2]
[365021825,1749407437765,-452.66682777,0.00017888,2]
[365021826,1749407437775,-601.19,0.00017888,2]
[365021827,1749407437784,-169.63832336,0.00017888,2]
[365021828,1749407437793,-480.0,0.00017888,2]
[365021829,1749407437803,-480.0,0.00017888,2]
[365021830,1749407437812,-480.0,0.00017888,2]
[365021831,1749407437822,-174.99,0.00017888,2]
[365021832,1749407437831,-480.0,0.00017888,2]
[365021833,1749407437841,-480.0,0.00017888,2]
[365021834,1749407437850,-460.0,0.00017888,2]
[365021835,1749407437860,-447.59132576,0.00017888,2]
[365021836,1749407437869,-480.0,0.00017888,2]
[365021837,1749407437878,-480.0,0.00017888,2]
[365021838,1749407437887,-480.0,0.00017888,2]
[365021839,1749407437896,-501.23170621,0.00017888,2]
[365021840,1749407437905,-480.0,0.00017888,2]
[365021841,1749407437915,-626.13,0.00017888,2]
[365021842,1749407437924,-480.0,0.00017888,2]
[365021843,1749407437933,-365.15661314,0.00017888,2]
[365021844,1749407437943,-865.58,0.00017888,2]
[365021845,1749407437952,-1836.62,0.00017888,2]
[365021846,1749407437961,-480.0,0.00017888,2]
[365021847,1749407437971,-1100.81,0.00017888,2]
[365021848,1749407437981,-480.0,0.00017888,2]
[365021849,1749407437990,-8450.91,0.00017888,2]
[365021850,1749407438001,-480.0,0.00017888,2]
[365021852,1749407438011,-480.0,0.00017888,2]
[365021854,1749407438020,-480.0,0.00017888,2]
[365021856,1749407438029,-480.0,0.00017888,2]
[365021857,1749407438038,-480.0,0.00017888,2]
[365021859,1749407438047,-20232.37,0.00017888,2]
[365021861,1749407438056,-480.0,0.00017888,2]
[365021863,1749407438065,-480.0,0.00017888,2]
[365021891,1749407438332,-480.0,0.00017888,2]
[365021893,1749407438342,-480.73,0.00017888,2]
[365021895,1749407438351,-480.0,0.00017888,2]
[365021897,1749407438360,-480.0,0.00017888,2]
[365021899,1749407438369,-480.0,0.00017888,2]
[365021900,1749407438380,-480.0,0.00017888,2]
[365021902,1749407438389,-1721.99,0.00017888,2]
[365021904,1749407438398,-480.0,0.00017888,2]
[365021906,1749407438407,-480.0,0.00017888,2]
[365021908,1749407438418,-530.01,0.00017888,2]
[365021910,1749407438427,-480.0,0.00017888,2]
[365021912,1749407438436,-480.0,0.00017888,2]
[365021914,1749407438445,-427.30299529,0.00017888,2]
[365021916,1749407438455,-725.4,0.00017888,2]
[365021917,1749407438464,-514.93377223,0.00017888,2]
[365021919,1749407438473,-480.0,0.00017888,2]
[365021921,1749407438482,-480.0,0.00017888,2]
[365021923,1749407438491,-480.0,0.00017888,2]
[365021925,1749407438500,-480.0,0.00017888,2]